[Event "DVM U12 2019"]
[Site "Magedburg"]
[Date "2019.12.28"]
[Round "3"]
[White "Freude, Max"]
[Black "Rehbein, Vitus"]
[Result "1-0"]
[ECO "B07"]
[WhiteElo "1809"]
[BlackElo "1547"]
[Annotator "NA RC"]
[PlyCount "43"]
[EventDate "2019.12.27"]
[EventType "team-tourn"]
[EventRounds "7"]
[EventCountry "GER"]
[SourceTitle "playchess.com"]
[Source "ChessBase"]
[SourceQuality "1"]
[WhiteTeam "SV Empor Berlin"]
[BlackTeam "Schachzentrum Bemerode"]
[WhiteTeamCountry "GER"]
[BlackTeamCountry "GER"]
[TimeControl "40/5400+30:1800+30"]

1. e4 {[%emt 0:00:00]} d6 {[%emt 0:00:00]} 2. d4 {[%emt 0:00:00]} Nf6 {[%emt 0:00:00]} 3. Nc3 {[%emt 0:00:00]} g6 {[%emt 0:00:00]} 4. Be3 {[%emt 0:00:02]} Bg7 {[%emt 0:00:00]} 5. f3 {[%emt 0:00:04]} O-O {[%emt 0:00:00]} 6. Qd2 {[%emt 0:00:04]} Nc6 {[%emt 0:00:06]} 7. g4 {[%emt 0:00:41]} e5 {[%emt 0:01:32] B07: Pirc Defence: Miscellaneous Systems} 8. d5 {[%emt 0:00:27] unterminated} Ne7 {[%emt 0:02:54] unterminated} 9. O-O-O {[%emt 0:01:02] unterminated} Bd7 {[%emt 0:03:58] unterminated} (9... Ne8 10. Bd3 c6 11. dxc6 bxc6 12. Bc4 Be6 13. Qd3 Qa5 {1-0 (13) Ponkratov,P (2530)-Losev,D (2381) Zvenigorod 2008}) 10. h4 {[%emt 0:02:27]} h5 {[%emt 0:00:19] unterminated} 11. gxh5 {[%emt 0:06:11]} Nxh5 {[%emt 0:00:09] unterminated} 12. Nge2 {[%emt 0:01:32] unterminated} f6 $146 {[%emt 0:07:56]} ({Black should play Predecessor:} 12... b5 $14 13. Rg1 b4 14. Nb1 a5 15. Ng3 Nxg3 16. Rxg3 {1-0 (26) Broucke,F (2343)-Baerschneider,A (2274) ICCF email 2000}) 13. Rg1 {[%emt 0:01:04]} Qb8 {[%emt 0:01:45]} 14. Ng3 {[%emt 0:01:20]} Nxg3 {[%emt 0:01:01]} 15. Rxg3 {[%emt 0:00:10]} Rd8 {[%emt 0:00:21] unterminated} 16. Bh6 {[%emt 0:00:58]} (16. f4 $18 {has better winning chances.}) 16... c6 {[%emt 0:06:05]} 17. Bc4 {[%emt 0:03:30]} Kh7 {[%emt 0:03:48]} 18. Bxg7 {[%emt 0:01:20]} Kxg7 {[%emt 0:00:19]} 19. Rdg1 {[%emt 0:02:11]} Rh8 {[%emt 0:05:14]} 20. Qg2 {[%emt 0:02:32]} Be8 {[%emt 0:00:44]} 21. Qh3 {[%emt 0:10:05]} Qc8 {[%emt 0:04:20] normal} 22. h5 $17 {[%emt 0:09:13] normal} (22. Qh2 $14 {stays ahead.}) 1-0

[Event "DVM U12 2019"]
[Site "Magedburg"]
[Date "2019.12.28"]
[Round "3"]
[White "Bungarten, Jona"]
[Black "Fuhrmann, Bahne"]
[Result "1/2-1/2"]
[ECO "C54"]
[WhiteElo "1750"]
[BlackElo "1603"]
[Annotator "NA RC"]
[PlyCount "51"]
[EventDate "2019.12.27"]
[EventType "team-tourn"]
[EventRounds "7"]
[EventCountry "GER"]
[SourceTitle "playchess.com"]
[Source "ChessBase"]
[SourceQuality "1"]
[WhiteTeam "SF Brackel"]
[BlackTeam "Hamburger SK"]
[WhiteTeamCountry "GER"]
[BlackTeamCountry "GER"]
[TimeControl "40/5400+30:1800+30"]

1. e4 {[%emt 0:00:00]} e5 {[%emt 0:00:00]} 2. Nf3 {[%emt 0:00:00]} Nc6 {[%emt 0:00:00]} 3. Bc4 {[%emt 0:00:00]} Bc5 {[%emt 0:00:00]} 4. c3 {[%emt 0:00:00]} Nf6 {[%emt 0:00:00]} 5. d4 {[%emt 0:00:00]} exd4 {[%emt 0:00:00]} 6. cxd4 {[%emt 0:00:05]} Bb4+ {[%emt 0:00:01]} 7. Nc3 {[%emt 0:00:04]} Nxe4 {[%emt 0:00:12]} 8. O-O {[%emt 0:00:07]} Bxc3 {[%emt 0:00:23]} 9. d5 {[%emt 0:00:11]} Bf6 {[%emt 0:00:58]} 10. Re1 {[%emt 0:00:17]} Ne7 {[%emt 0:00:21]} 11. Rxe4 {[%emt 0:00:07]} d6 {[%emt 0:00:08]} 12. Bg5 {[%emt 0:01:11]} Bxg5 {[%emt 0:01:15]} 13. Nxg5 {[%emt 0:00:11]} h6 {[%emt 0:01:05]} 14. Qe2 {[%emt 0:00:29]} hxg5 {[%emt 0:00:24]} 15. Re1 {[%emt 0:00:07]} Be6 {[%emt 0:00:07]} 16. h3 {[%emt 0:01:01]} c6 {[%emt 0:06:13]} 17. dxe6 {[%emt 0:00:25]} f6 {[%emt 0:00:39]} 18. Rg4 {[%emt 0:00:12]} Ng6 {[%emt 0:07:45]} 19. Qc2 {[%emt 0:15:40]} Rh6 {[%emt 0:03:17]} 20. e7 {[%emt 0:07:42]} Qc7 {[%emt 0:02:12]} 21. f4 {[%emt 0:04:07]} Nxf4 {[%emt 0:01:56]} 22. Qf5 {[%emt 0:03:57]} Qb6+ {[%emt 0:05:51]} 23. Kf1 {[%emt 0:04:18]} Qd4 {[%emt 0:06:01]} 24. Bf7+ {[%emt 0:02:02]} Kxf7 {[%emt 0:00:33]} 25. e8=Q+ {[%emt 0:00:08]} Rxe8 {[%emt 0:00:33]} 26. Qd7+ {[%emt 0:00:07] normal} 1/2-1/2

[Event "DVM U12 2019"]
[Site "Magedburg"]
[Date "2019.12.28"]
[Round "3"]
[White "Krüger, Arthur"]
[Black "Tomasjan, Samuel"]
[Result "1-0"]
[ECO "A40"]
[WhiteElo "1693"]
[BlackElo "1662"]
[Annotator "NA RC"]
[PlyCount "73"]
[EventDate "2019.12.27"]
[EventType "team-tourn"]
[EventRounds "7"]
[EventCountry "GER"]
[SourceTitle "playchess.com"]
[Source "ChessBase"]
[SourceQuality "1"]
[WhiteTeam "Hamburger SK"]
[BlackTeam "SF Brackel"]
[BlackTeamCountry "GER"]
[TimeControl "40/5400+30:1800+30"]

1. d4 {[%emt 0:00:00]} e6 {[%emt 0:00:00]} 2. Bf4 {[%emt 0:00:26]} d5 {[%emt 0:00:00]} 3. c3 {[%emt 0:01:48]} Nf6 {[%emt 0:00:24]} 4. e3 {[%emt 0:00:49]} c5 {[%emt 0:00:40]} 5. Nd2 {[%emt 0:02:50]} Nc6 {[%emt 0:00:52]} 6. Ngf3 {[%emt 0:00:25]} cxd4 {[%emt 0:02:23]} 7. exd4 {[%emt 0:02:24]} Bd6 {[%emt 0:02:10]} 8. Bg3 {[%emt 0:01:23]} a6 {[%emt 0:01:37]} 9. Bd3 {[%emt 0:01:39]} b5 {[%emt 0:01:28]} 10. a3 {[%emt 0:01:11]} Rb8 {[%emt 0:03:32]} 11. b4 {[%emt 0:02:44]} O-O {[%emt 0:01:08]} 12. O-O {[%emt 0:01:54]} Re8 {[%emt 0:01:01]} 13. Re1 {[%emt 0:03:37]} Qc7 {[%emt 0:01:32]} 14. Ne5 {[%emt 0:03:44]} Bxe5 {[%emt 0:02:40]} 15. dxe5 {[%emt 0:02:10]} Nd7 {[%emt 0:00:42]} 16. Qh5 {[%emt 0:04:45]} g6 {[%emt 0:03:08]} 17. Qg5 {[%emt 0:06:17]} Ne7 {[%emt 0:01:31]} 18. Rac1 {[%emt 0:02:21]} Nf5 {[%emt 0:01:50]} 19. Bxf5 {[%emt 0:01:17]} exf5 {[%emt 0:00:26]} 20. e6 {[%emt 0:00:23]} Qc6 {[%emt 0:07:02]} 21. exd7 {[%emt 0:02:29]} Bxd7 {[%emt 0:01:33]} 22. Bxb8 {[%emt 0:00:28]} Rxb8 {[%emt 0:00:08]} 23. Nb3 {[%emt 0:00:58]} Rc8 {[%emt 0:02:42]} 24. Nc5 {[%emt 0:00:34]} Ra8 {[%emt 0:03:53]} 25. Re7 {[%emt 0:02:21]} Ra7 {[%emt 0:08:17]} 26. Qf4 {[%emt 0:02:54]} Rc7 {[%emt 0:04:24]} 27. Nxd7 {[%emt 0:00:53]} Rxd7 {[%emt 0:00:12]} 28. Qb8+ {[%emt 0:00:05]} Kg7 {[%emt 0:00:22]} 29. Qe5+ {[%emt 0:00:04]} Kh6 {[%emt 0:00:22]} 30. Qe3+ {[%emt 0:01:33]} Kg7 {[%emt 0:00:34]} 31. Qd4+ {[%emt 0:00:13]} Kh6 {[%emt 0:00:20]} 32. Re3 {[%emt 0:01:05]} f6 {[%emt 0:00:55]} 33. Rce1 {[%emt 0:00:30]} g5 {[%emt 0:05:06]} 34. Re6 {[%emt 0:00:17]} Qc4 {[%emt 0:04:15]} 35. Qxf6+ {[%emt 0:00:15]} Kh5 {[%emt 0:00:13]} 36. Qh6+ {[%emt 0:00:06]} Kg4 {[%emt 0:00:23] normal} 37. Qh3+ {[%emt 0:00:13] normal} 1-0

[Event "DVM U12 2019"]
[Site "Magedburg"]
[Date "2019.12.28"]
[Round "3"]
[White "Englert, Luca"]
[Black "Espig, Nils"]
[Result "0-1"]
[ECO "A03"]
[WhiteElo "1632"]
[BlackElo "1596"]
[Annotator "NA RC"]
[PlyCount "154"]
[EventDate "2019.12.27"]
[EventType "team-tourn"]
[EventRounds "7"]
[EventCountry "GER"]
[SourceTitle "playchess.com"]
[Source "ChessBase"]
[SourceQuality "1"]
[WhiteTeam "BSG Grün-Weiß Leipzig"]
[BlackTeam "USV TU Dresden"]
[WhiteTeamCountry "GER"]
[BlackTeamCountry "GER"]
[TimeControl "40/5400+30:1800+30"]

1. f4 {[%emt 0:00:00]} d5 {[%emt 0:00:00]} 2. Nf3 {[%emt 0:00:00]} Nf6 {[%emt 0:00:00]} 3. e3 {[%emt 0:00:00]} Nc6 {[%emt 0:00:56]} 4. Be2 {[%emt 0:00:00]} e6 {[%emt 0:00:39]} 5. O-O {[%emt 0:00:00]} Bd6 {[%emt 0:00:35]} 6. b3 {[%emt 0:00:07]} e5 {[%emt 0:01:34]} 7. fxe5 {[%emt 0:00:09]} Nxe5 {[%emt 0:00:07]} 8. Bb2 {[%emt 0:00:07]} Qe7 {[%emt 0:00:54]} 9. Qe1 {[%emt 0:00:39]} O-O {[%emt 0:00:37]} 10. Qh4 {[%emt 0:02:58]} Ng6 {[%emt 0:05:10]} 11. Bxf6 {[%emt 0:02:44]} Nxh4 {[%emt 0:00:46]} 12. Bxe7 {[%emt 0:00:05]} Bxe7 {[%emt 0:00:12]} 13. Nc3 {[%emt 0:00:44]} Nxf3+ {[%emt 0:01:17]} 14. Bxf3 {[%emt 0:00:32]} c6 {[%emt 0:00:12]} 15. Rae1 {[%emt 0:00:51]} Bb4 {[%emt 0:03:15]} 16. Nb1 {[%emt 0:01:03]} Bd7 {[%emt 0:03:25]} 17. c3 {[%emt 0:01:00]} Bc5 {[%emt 0:01:16]} 18. d4 {[%emt 0:00:16]} Bb6 {[%emt 0:00:40]} 19. Nd2 {[%emt 0:01:08]} f5 {[%emt 0:02:21]} 20. Rf2 {[%emt 0:02:23]} Rae8 {[%emt 0:01:11]} 21. Kf1 {[%emt 0:02:24]} Re7 {[%emt 0:01:43]} 22. g3 {[%emt 0:03:17]} Rfe8 {[%emt 0:02:54]} 23. Rfe2 {[%emt 0:00:29]} Kf8 {[%emt 0:06:24]} 24. b4 {[%emt 0:00:56]} Bc7 {[%emt 0:02:54]} 25. Nb3 {[%emt 0:00:41]} c5 {[%emt 0:06:40]} 26. Bxd5 {[%emt 0:04:22]} cxb4 {[%emt 0:00:55]} 27. c4 {[%emt 0:00:10]} Bc6 {[%emt 0:00:55]} 28. Bxc6 {[%emt 0:00:36]} bxc6 {[%emt 0:00:05]} 29. Nc5 {[%emt 0:02:16]} a5 {[%emt 0:01:13]} 30. d5 {[%emt 0:01:47]} cxd5 {[%emt 0:02:29]} 31. cxd5 {[%emt 0:00:02]} Bb6 {[%emt 0:02:42]} 32. Ne6+ {[%emt 0:00:28]} Kf7 {[%emt 0:00:45]} 33. e4 {[%emt 0:03:02]} fxe4 {[%emt 0:02:25]} 34. Rxe4 {[%emt 0:00:09]} h6 {[%emt 0:02:13]} 35. Kg2 {[%emt 0:03:31]} Kg8 {[%emt 0:02:57]} 36. Kf3 {[%emt 0:03:37]} Rd7 {[%emt 0:05:36]} 37. Rd1 {[%emt 0:01:40]} Ree7 {[%emt 0:07:08]} 38. Nf4 {[%emt 0:03:12]} Rxe4 {[%emt 0:02:44]} 39. Kxe4 {[%emt 0:00:06]} Kf7 {[%emt 0:00:55]} 40. Ne6 {[%emt 0:01:46]} g5 {[%emt 0:00:53]} 41. Rc1 {[%emt 0:31:33]} Ke7 {[%emt 0:31:18]} 42. g4 {[%emt 0:01:01]} Rd6 {[%emt 0:02:14]} 43. Ng7 {[%emt 0:01:24]} Kd7 {[%emt 0:01:34]} 44. Nf5 {[%emt 0:00:52]} Rf6 {[%emt 0:01:37]} 45. Ke5 {[%emt 0:00:16]} Rg6 {[%emt 0:00:49]} 46. h3 {[%emt 0:01:19]} Bc7+ {[%emt 0:00:49]} 47. Ke4 {[%emt 0:00:39]} Rb6 {[%emt 0:01:50]} 48. Rb1 {[%emt 0:00:39]} Bf4 {[%emt 0:01:03]} 49. Nd4 {[%emt 0:00:34]} Bc7 {[%emt 0:02:09]} 50. Nc6 {[%emt 0:00:58]} Rb5 {[%emt 0:00:36]} 51. Rb3 {[%emt 0:00:23]} Kd6 {[%emt 0:00:43]} 52. Rd3 {[%emt 0:00:28]} a4 {[%emt 0:00:36]} 53. Nd4 {[%emt 0:00:44]} Rb6 {[%emt 0:00:32]} 54. Rf3 {[%emt 0:01:54]} Ke7 {[%emt 0:01:14]} 55. Nc6+ {[%emt 0:02:43]} Ke8 {[%emt 0:00:55]} 56. Nd4 {[%emt 0:01:30]} Ke7 {[%emt 0:01:34]} 57. Nf5+ {[%emt 0:00:30]} Kd7 {[%emt 0:00:23]} 58. Nd4 {[%emt 0:01:09]} Bf4 {[%emt 0:01:14]} 59. Rd3 {[%emt 0:00:34]} Kd6 {[%emt 0:01:05]} 60. Nf5+ {[%emt 0:01:07]} Kc5 {[%emt 0:00:33]} 61. Nd4 {[%emt 0:00:49]} Kc4 {[%emt 0:00:49]} 62. Ne2 {[%emt 0:00:59]} b3 {[%emt 0:01:29]} 63. Rd4+ {[%emt 0:03:35]} Kc5 {[%emt 0:00:44]} 64. axb3 {[%emt 0:01:46]} axb3 {[%emt 0:01:59]} 65. Rd1 {[%emt 0:01:16]} Rb4+ {[%emt 0:01:14]} 66. Kf5 {[%emt 0:02:42]} b2 {[%emt 0:01:04]} 67. Nc3 {[%emt 0:00:13]} Rc4 {[%emt 0:00:26]} 68. Ne2 {[%emt 0:03:02]} Bc1 {[%emt 0:02:57]} 69. d6 {[%emt 0:01:37]} b1=Q+ {[%emt 0:00:26]} 70. Ke6 {[%emt 0:00:37]} Qe4+ {[%emt 0:01:00]} 71. Kf6 {[%emt 0:00:44]} Qxe2 {[%emt 0:00:34]} 72. Rd5+ {[%emt 0:00:23]} Kxd5 {[%emt 0:00:30]} 73. h4 {[%emt 0:00:16]} Rf4+ {[%emt 0:00:21]} 74. Kg6 {[%emt 0:00:05]} Qe6+ {[%emt 0:00:16]} 75. Kh5 {[%emt 0:00:11]} gxh4 {[%emt 0:01:19]} 76. d7 {[%emt 0:00:09]} Qxg4+ {[%emt 0:00:18]} 77. Kxh6 {[%emt 0:00:02]} Rf7# {[%emt 0:00:39] normal} 0-1

[Event "DVM U12 2019"]
[Site "Magedburg"]
[Date "2019.12.28"]
[Round "3"]
[White "Brandstrup, Luca Alexander"]
[Black "Skolnik, Andrius"]
[Result "1-0"]
[ECO "C45"]
[WhiteElo "1602"]
[BlackElo "1278"]
[Annotator "NA RC"]
[PlyCount "93"]
[EventDate "2019.12.27"]
[EventType "team-tourn"]
[EventRounds "7"]
[EventCountry "GER"]
[SourceTitle "playchess.com"]
[Source "ChessBase"]
[SourceQuality "1"]
[WhiteTeam "Hamburger SK"]
[BlackTeam "SF Brackel"]
[WhiteTeamCountry "GER"]
[TimeControl "40/5400+30:1800+30"]

1. e4 {[%emt 0:00:00]} e5 {[%emt 0:00:00]} 2. Nf3 {[%emt 0:00:14]} Nc6 {[%emt 0:00:00]} 3. d4 {[%emt 0:00:14]} exd4 {[%emt 0:00:00]} 4. Nxd4 {[%emt 0:00:17]} Bc5 {[%emt 0:00:13]} 5. Be3 {[%emt 0:00:11]} Qf6 {[%emt 0:00:28]} 6. c3 {[%emt 0:00:15]} Qd6 {[%emt 0:01:24]} 7. Nb5 {[%emt 0:05:04]} Qxd1+ 8. Kxd1 Bd6 {[%emt 0:02:13]} 9. Nxd6+ {[%emt 0:01:00]} cxd6 {[%emt 0:00:08]} 10. f4 {[%emt 0:01:36]} Nf6 {[%emt 0:00:09]} 11. Bd3 {[%emt 0:03:30]} O-O 12. h3 Re8 {[%emt 0:01:55]} 13. Nd2 {[%emt 0:00:51]} b6 {[%emt 0:00:16]} 14. g4 {[%emt 0:04:41]} Bb7 {[%emt 0:00:15]} 15. g5 {[%emt 0:00:43]} Nh5 {[%emt 0:00:22]} 16. Rg1 {[%emt 0:03:53]} g6 17. Nc4 Re6 18. f5 Re5 {[%emt 0:12:16]} 19. Nxe5 {[%emt 0:03:41]} Nxe5 {[%emt 0:00:08]} 20. Ke2 {[%emt 0:02:40]} d5 {[%emt 0:00:26]} 21. Rab1 {[%emt 0:12:43]} dxe4 22. Bc2 Nf3 {[%emt 0:02:20]} 23. Rgd1 {[%emt 0:06:21]} d5 {[%emt 0:03:02]} 24. f6 {[%emt 0:02:04]} Ng3+ 25. Kf2 {[%emt 0:02:45]} Nf5 {[%emt 0:01:19]} 26. Bf4 {[%emt 0:05:17]} Rd8 {[%emt 0:00:30]} 27. Bxe4 {[%emt 0:01:02]} Bc6 {[%emt 0:01:29]} 28. Bxf3 {[%emt 0:00:48]} a6 {[%emt 0:00:49]} 29. Bg4 {[%emt 0:01:34]} Nd6 {[%emt 0:03:58]} 30. Bxd6 {[%emt 0:00:40]} Rxd6 {[%emt 0:00:01]} 31. Re1 {[%emt 0:00:21]} d4 {[%emt 0:00:09]} 32. cxd4 {[%emt 0:00:23]} Rxd4 {[%emt 0:00:07]} 33. Bf3 {[%emt 0:01:24]} Rf4 {[%emt 0:00:47]} 34. Re3 {[%emt 0:00:24]} h6 {[%emt 0:01:09]} 35. Kg3 {[%emt 0:00:43]} Rc4 {[%emt 0:00:42]} 36. Bxc6 {[%emt 0:00:18]} Rxc6 {[%emt 0:00:22]} 37. Rc3 {[%emt 0:00:28]} Re6 {[%emt 0:00:23]} 38. h4 {[%emt 0:01:00]} Re5 {[%emt 0:00:48]} 39. Kf4 {[%emt 0:01:00]} Rf5+ {[%emt 0:00:31]} 40. Ke4 {[%emt 0:00:51]} hxg5 {[%emt 0:00:46]} 41. hxg5 {[%emt 0:30:17]} Rxg5 {[%emt 0:30:11]} 42. Rc8+ {[%emt 0:00:08]} Kh7 {[%emt 0:00:44]} 43. Rh1+ {[%emt 0:00:10]} Rh5 {[%emt 0:00:13]} 44. Rxh5+ {[%emt 0:00:15]} gxh5 {[%emt 0:00:02]} 45. Kf5 {[%emt 0:00:15]} h4 {[%emt 0:00:24]} 46. Kg4 {[%emt 0:00:12]} Kg6 {[%emt 0:00:40] normal} 47. Rc6 {[%emt 0:00:11] normal} 1-0

[Event "DVM U12 2019"]
[Site "Magedburg"]
[Date "2019.12.28"]
[Round "3"]
[White "Widmann, Maximilian"]
[Black "Fruth, David"]
[Result "0-1"]
[ECO "A05"]
[WhiteElo "1592"]
[BlackElo "1473"]
[Annotator "NA RC"]
[PlyCount "58"]
[EventDate "2019.12.27"]
[EventType "team-tourn"]
[EventRounds "7"]
[EventCountry "GER"]
[SourceTitle "playchess.com"]
[Source "ChessBase"]
[SourceQuality "1"]
[WhiteTeam "BSG Grün-Weiß Leipzig"]
[BlackTeam "USV TU Dresden"]
[WhiteTeamCountry "GER"]
[BlackTeamCountry "GER"]
[TimeControl "40/5400+30:1800+30"]

1. Nf3 {[%emt 0:00:00]} Nf6 {[%emt 0:00:00]} 2. g3 {[%emt 0:00:00]} e6 {[%emt 0:00:00]} 3. Bg2 {[%emt 0:00:21]} Bc5 {[%emt 0:00:00]} 4. O-O {[%emt 0:00:48]} h5 {[%emt 0:00:14]} 5. d4 {[%emt 0:02:29]} Be7 {[%emt 0:00:13]} 6. Bg5 {[%emt 0:09:13]} Ne4 {[%emt 0:02:32]} 7. Bxe7 {[%emt 0:01:23]} Qxe7 {[%emt 0:00:04]} 8. Qd3 {[%emt 0:03:18]} d5 {[%emt 0:00:31]} 9. Nbd2 {[%emt 0:05:15]} f5 {[%emt 0:00:57]} 10. Ne5 {[%emt 0:04:29]} Qf6 {[%emt 0:01:23]} 11. Ndf3 {[%emt 0:09:25]} g5 {[%emt 0:00:31]} 12. h3 {[%emt 0:07:33]} f4 {[%emt 0:01:39]} 13. g4 {[%emt 0:03:07]} Nd7 {[%emt 0:02:29]} 14. Rad1 {[%emt 0:04:56]} c5 {[%emt 0:02:34]} 15. e3 {[%emt 0:06:48]} c4 {[%emt 0:03:51]} 16. Qe2 {[%emt 0:01:35]} Nxe5 {[%emt 0:01:20]} 17. Nxe5 {[%emt 0:00:56]} c3 {[%emt 0:01:08]} 18. Bxe4 {[%emt 0:08:11]} dxe4 {[%emt 0:00:41]} 19. exf4 {[%emt 0:03:07]} hxg4 {[%emt 0:01:36]} 20. Qxg4 {[%emt 0:04:18]} gxf4 {[%emt 0:00:15]} 21. bxc3 {[%emt 0:03:43]} Bd7 {[%emt 0:00:23]} 22. f3 {[%emt 0:01:10]} O-O-O {[%emt 0:00:16]} 23. Kh2 {[%emt 0:00:58]} Rdg8 {[%emt 0:00:10]} 24. fxe4 {[%emt 0:03:19]} Rxg4 {[%emt 0:00:45]} 25. Nxg4 {[%emt 0:00:33]} Qh4 {[%emt 0:00:04]} 26. Nf2 {[%emt 0:01:22]} Qg3+ {[%emt 0:00:03]} 27. Kh1 {[%emt 0:00:36]} f3 {[%emt 0:00:28] normal} 28. Rg1 {[%emt 0:01:04]} Qxh3+ {[%emt 0:00:03]} 29. Nxh3 {[%emt 0:01:03] normal} Rxh3# {normal} 0-1

[Event "DVM U12 2019"]
[Site "Magedburg"]
[Date "2019.12.28"]
[Round "3"]
[White "Freude, Paul"]
[Black "Bangiev, Anton"]
[Result "1/2-1/2"]
[ECO "B07"]
[WhiteElo "1491"]
[BlackElo "1431"]
[Annotator "NA RC"]
[PlyCount "102"]
[EventDate "2019.12.27"]
[EventType "team-tourn"]
[EventRounds "7"]
[EventCountry "GER"]
[SourceTitle "playchess.com"]
[Source "ChessBase"]
[SourceQuality "1"]
[WhiteTeam "SV Empor Berlin"]
[BlackTeam "Schachzentrum Bemerode"]
[WhiteTeamCountry "GER"]
[BlackTeamCountry "GER"]
[TimeControl "40/5400+30:1800+30"]

1. e4 {[%emt 0:00:00]} d6 {[%emt 0:00:00]} 2. d4 {[%emt 0:00:00]} Nf6 {[%emt 0:00:00]} 3. Nc3 {[%emt 0:00:00]} g6 {[%emt 0:00:00]} 4. Be3 {[%emt 0:00:00]} Bg7 {[%emt 0:00:00]} 5. f3 {[%emt 0:00:05]} O-O {[%emt 0:00:03]} 6. Qd2 {[%emt 0:00:11]} e5 {[%emt 0:00:19]} 7. O-O-O {[%emt 0:00:55]} Nc6 {[%emt 0:02:34]} 8. d5 {[%emt 0:01:00]} Ne7 {[%emt 0:00:47]} 9. g4 {[%emt 0:00:49]} a6 {[%emt 0:05:59]} 10. g5 {[%emt 0:01:21]} Ne8 {[%emt 0:02:03]} 11. h4 {[%emt 0:00:46]} f5 {[%emt 0:20:11]} 12. Qh2 {[%emt 0:13:36]} Rf7 {[%emt 0:06:11]} 13. h5 {[%emt 0:02:46]} Bh8 {[%emt 0:01:19]} 14. hxg6 {[%emt 0:10:32]} Nxg6 {[%emt 0:00:17]} 15. Qh6 {[%emt 0:01:02]} f4 {[%emt 0:04:10]} 16. Bf2 {[%emt 0:02:26]} Qe7 {[%emt 0:08:39]} 17. Bc4 {[%emt 0:03:50]} b5 {[%emt 0:02:18]} 18. Bb3 {[%emt 0:01:23]} Bd7 {[%emt 0:01:11]} 19. Nce2 {[%emt 0:02:47]} a5 {[%emt 0:01:52]} 20. c3 {[%emt 0:01:23]} a4 {[%emt 0:03:57]} 21. Bc2 {[%emt 0:00:19]} Rb8 {[%emt 0:02:48]} 22. a3 {[%emt 0:02:03]} c5 {[%emt 0:02:23]} 23. dxc6 {[%emt 0:01:46]} Bxc6 {[%emt 0:00:20]} 24. Bb1 {[%emt 0:02:15]} Qe6 {[%emt 0:03:39]} 25. Qh3 {[%emt 0:03:50]} Qxh3 {[%emt 0:06:16]} 26. Nxh3 {[%emt 0:01:04]} Rd7 {[%emt 0:00:40]} 27. Ba2+ {[%emt 0:00:39]} Kf8 28. Be6 {[%emt 0:03:53]} Re7 {[%emt 0:00:50]} 29. Bf5 {[%emt 0:00:46]} Kf7 {[%emt 0:00:39]} 30. Nhg1 {[%emt 0:02:32]} Kg7 {[%emt 0:00:44]} 31. Kb1 {[%emt 0:01:52]} Reb7 {[%emt 0:03:03]} 32. Nc1 {[%emt 0:00:49]} Bd7 {[%emt 0:01:43]} 33. Bxd7 {[%emt 0:01:00]} Rxd7 {[%emt 0:00:06]} 34. Nge2 {[%emt 0:00:24]} Rbd8 {[%emt 0:00:48]} 35. Bb6 {[%emt 0:01:04]} Rb8 {[%emt 0:01:49]} 36. Ba5 {[%emt 0:01:08]} Kg8 {[%emt 0:00:48]} 37. Na2 {[%emt 0:01:07]} Ra7 {[%emt 0:03:20]} 38. Bb4 {[%emt 0:02:35]} Rd7 {[%emt 0:00:11]} 39. Ba5 {[%emt 0:00:37]} Ra8 {[%emt 0:01:49]} 40. Bb6 {[%emt 0:01:00]} Ra6 {[%emt 0:00:16]} 41. Bf2 {[%emt 0:30:19]} Bg7 {[%emt 0:30:41]} 42. Nb4 {[%emt 0:01:20]} Ra8 {[%emt 0:01:06]} 43. Nd5 {[%emt 0:01:05]} Rb8 {[%emt 0:01:42]} 44. Nc1 {[%emt 0:04:40]} Ne7 {[%emt 0:01:46]} 45. Nxe7+ {[%emt 0:01:07]} Rxe7 {[%emt 0:01:20]} 46. Na2 {[%emt 0:00:40]} Rd7 {[%emt 0:00:22]} 47. Nb4 {[%emt 0:00:32]} Nc7 {[%emt 0:00:56]} 48. Nd5 {[%emt 0:01:16]} Nxd5 {[%emt 0:01:06]} 49. Rxd5 {[%emt 0:00:17]} Bf8 {[%emt 0:01:39]} 50. Rhd1 {[%emt 0:00:43]} Kf7 {[%emt 0:02:06]} 51. Rxe5 {[%emt 0:01:24]} dxe5 {[%emt 0:07:49] normal} 1/2-1/2